fUSD/lending_fUSD_20250422
["ID","MTS","AMOUNT","RATE_DAILY","PERIOD"]
[358665374,1745351442379,-500.0,0.00039726,15]
[358665375,1745351442389,-500.0,0.00039726,15]
[358665377,1745351442398,-500.0,0.00039726,15]
[358665379,1745351442407,-500.0,0.00039726,15]
[358665381,1745351442417,-300.08523149,0.00039726,15]
[358665383,1745351442427,-500.0,0.00039726,15]
[358665386,1745351442437,-500.0,0.00039726,15]
[358665388,1745351442446,-500.0,0.00039726,15]
[358665389,1745351442455,-500.0,0.00039726,15]
[358665391,1745351442465,-500.0,0.00039726,15]
[358665393,1745351442474,-500.0,0.00039726,15]
[358665395,1745351442483,-500.0,0.00039726,15]
[358665397,1745351442493,-500.0,0.00039726,15]
[358665399,1745351442502,-500.0,0.00039726,15]
[358665401,1745351442511,-500.0,0.00039726,15]
[358665403,1745351442520,-500.0,0.00039726,15]
[358665405,1745351442529,-500.0,0.00039726,15]
[358665407,1745351442538,-500.0,0.00039726,15]
[358665409,1745351442547,-500.0,0.00039726,15]
[358665411,1745351442557,-500.0,0.00039726,15]
[358665413,1745351442566,-500.0,0.00039726,15]
[358665415,1745351442576,-500.0,0.00039726,15]
[358665417,1745351442586,-500.0,0.00039726,15]
[358665419,1745351442595,-500.0,0.00039726,15]
[358665421,1745351442605,-500.0,0.00039726,15]
[358665423,1745351442614,-500.0,0.00039726,15]
[358665424,1745351442624,-500.0,0.00039726,15]
[358665425,1745351442633,-500.0,0.00039726,15]
[358665426,1745351442643,-500.0,0.00039726,15]
[358665427,1745351442652,-500.0,0.00039726,15]
[358665428,1745351442661,-500.0,0.00039726,15]
[358665429,1745351442671,-500.0,0.00039726,15]
[358665430,1745351442681,-500.0,0.00039726,15]
[358665431,1745351442691,-500.0,0.00039726,15]
[358665432,1745351442700,-500.0,0.00039726,15]
[358665433,1745351442711,-500.0,0.00039726,15]
[358665434,1745351442721,-500.0,0.00039726,15]
[358665435,1745351442731,-500.0,0.00039726,15]
[358665437,1745351442740,-500.0,0.00039726,15]
[358665439,1745351442749,-500.0,0.00039726,15]
[358665441,1745351442759,-500.0,0.00039726,15]
[358665443,1745351442768,-500.0,0.00039726,15]
[358665444,1745351442777,-500.0,0.00039726,15]
[358665446,1745351442786,-500.0,0.00039726,15]
[358665448,1745351442796,-500.0,0.00039726,15]
[358665450,1745351442805,-500.0,0.00039726,15]
[358665452,1745351442814,-500.0,0.00039726,15]
[358665455,1745351442826,-500.0,0.00039726,15]
[358665457,1745351442841,-500.0,0.00039726,15]
[358665459,1745351442851,-500.0,0.00039726,15]
[358665461,1745351442861,-500.0,0.00039726,15]
[358665463,1745351442872,-500.0,0.00039726,15]
[358665466,1745351442882,-500.0,0.00039726,15]
[358665468,1745351442892,-1345.42904752,0.00039726,15]
[358665470,1745351442902,-1345.42904752,0.00039726,15]
[358665472,1745351442912,-1345.42904752,0.00039726,15]
[358665474,1745351442921,-1345.42904752,0.00039726,15]
[358665476,1745351442931,-1345.42904752,0.00039726,15]
[358665478,1745351442941,-1345.42904752,0.00039726,15]
[358665480,1745351442951,-1345.42904752,0.00039726,15]
[358665482,1745351442961,-1345.42904752,0.00039726,15]
[358665484,1745351442970,-1345.42904752,0.00039726,15]
[358665486,1745351442980,-1345.42904752,0.00039726,15]
[358665488,1745351442990,-1345.42904752,0.00039726,15]
[358665490,1745351442999,-1345.42904752,0.00039726,15]
[358665493,1745351443010,-1345.42904752,0.00039726,15]
[358665496,1745351443020,-1345.42904752,0.00039726,15]
[358665499,1745351443029,-1345.42904752,0.00039726,15]
[358665501,1745351443039,-1345.42904752,0.00039726,15]
[358665503,1745351443048,-1345.42904752,0.00039726,15]
[358665505,1745351443058,-1345.42904752,0.00039726,15]
[358665507,1745351443068,-1345.42904752,0.00039726,15]
[358665509,1745351443077,-1345.42904752,0.00039726,15]
[358665512,1745351443086,-1345.42904752,0.00039726,15]
[358665514,1745351443096,-1345.42904752,0.00039726,15]
[358665516,1745351443106,-8962.77779489,0.00039999,7]
[358665518,1745351443116,-1181.65088066,0.0004,10]
[358665521,1745351443125,-4432.63,0.0004,14]
[358665523,1745351443135,-433.97746439,0.0004,30]
[358665526,1745351443146,-1235.44593755,0.0004,10]
[358665530,1745351443156,-320.8578426,0.0004,120]
[358665533,1745351443165,-1539.58571502,0.0004,15]
[358665535,1745351443175,-162.95,0.0004,30]
[358665537,1745351443185,-151.0,0.00040127,14]
[358665539,1745351443195,-150.0,0.00040127,2]
[358665541,1745351443209,-978.73,0.00040155,2]
[358665543,1745351443218,-3890.67728182,0.0004021,15]
[358665545,1745351443228,-243.78506816,0.00040227,120]
[358665547,1745351443238,-1333.0,0.00040312,2]
[358665549,1745351443249,-795.0,0.00040312,2]
[358665551,1745351443258,-876.0,0.00040312,2]
[358665553,1745351443267,-3981.0,0.00040312,2]
[358665556,1745351443283,-150.0,0.00040312,2]
[358665558,1745351443293,-1143.34112161,0.00040371,5]
[358665560,1745351443303,-1028.21523767,0.00040371,5]
[358665562,1745351443313,-1311.08,0.000408,14]
[358665564,1745351443322,-631.6454,0.00040888,7]
[358665566,1745351443333,-189.49363,0.00040888,30]
[358665568,1745351443344,-815.0,0.00041,14]
[358665570,1745351443354,-172.0,0.00041,14]
[358665572,1745351443363,-150.5,0.0004107,120]
[358665574,1745351443373,-267.7,0.0004107,120]
[358665576,1745351443383,-150.5,0.0004107,120]
[358665578,1745351443393,-150.5,0.0004108,120]
[358665580,1745351443402,-150.5,0.0004108,120]
[358665582,1745351443412,-150.5,0.0004108,120]
[358665585,1745351443422,-293.09,0.0004108,120]
[358665586,1745351443433,-189.49363,0.00041088,30]
[358665589,1745351443443,-150.5,0.0004109,120]
[358665591,1745351443453,-150.5,0.0004109,120]
[358665593,1745351443463,-150.5,0.0004109,120]
[358665595,1745351443473,-150.5,0.0004109,120]
[358665597,1745351443483,-358.84,0.00041095,120]
[358665599,1745351443494,-307.47062336,0.00041096,10]
[358665601,1745351443503,-150.0,0.00041096,10]
[358665603,1745351443513,-189.49363,0.00041288,30]
[358665605,1745351443523,-815.0,0.0004137,90]
[358665607,1745351443533,-3890.67728182,0.00041417,16]
[358665609,1745351443542,-189.49363,0.00041488,30]
[358665611,1745351443552,-1060.98,0.00041619,30]
[358665613,1745351443562,-152.56161245,0.00041644,10]
[358665615,1745351443572,-815.0,0.00041644,90]
[358665617,1745351443582,-189.49363,0.00041688,30]
[358665619,1745351443592,-189.49363,0.00041888,30]
[358665621,1745351443602,-815.0,0.00041918,90]
[358665623,1745351443611,-150.38,0.0004199,2]
[358665625,1745351443622,-150.38,0.0004199,2]
[358665627,1745351443632,-163.83245271,0.00042,30]
[358665629,1745351443641,-315174.90532831,0.00042,30]
[358665634,1745351444476,-250.55735797,0.00042,30]
[358665635,1745351444788,-70.6629101,0.00042,30]
[358665636,1745351444807,-1090.85846079,0.00042,30]
[358665637,1745351444824,-500.0,0.00042,30]
[358665638,1745351445027,-132.49726357,0.00042,30]
[358665639,1745351445086,-162.38808541,0.00042,30]
[358665640,1745351445097,-1654.19504012,0.00042,30]
[358665641,1745351445116,-668.51013777,0.00042,30]
[358665649,1745351446622,-78.20152798,0.000199,2]
[358665651,1745351446638,-2553.6,0.000199,2]
[358665661,1745351446730,-162.77928161,0.000199,2]
[358665663,1745351446742,-2736.29720895,0.000199,2]
[358665664,1745351446752,-209.60585966,0.000199,2]
[358665665,1745351446762,-170.05735251,0.00032722,2]
[358665666,1745351446772,-1131.0,0.00034312,2]
[358665667,1745351446782,-273.84685793,0.00037312,2]
[358665668,1745351446845,-156.9244173,0.00037312,2]
[358665672,1745352426890,-250.0,0.0002111,2]
[358665673,1745352426918,-250.0,0.00021573,2]
[358665674,1745352426947,-500.0,0.00021799,2]
[358665675,1745352481796,-500.0,0.00021799,2]
[358665676,1745352482021,-250.0,0.00022073,2]
[358665677,1745352482051,-174.85,0.00022347,2]
[358665678,1745352482077,-250.0,0.00022968,2]
[358665679,1745352482103,-150.0,0.00022968,2]
[358665680,1745352482201,150.0,0.00022073,2]
[358665681,1745352508018,-150.0,0.00023221,2]
[358665682,1745352508046,-250.0,0.00023979,2]
[358665683,1745352508076,-150.0,0.00023979,2]
[358665684,1745352547651,-1000.0,0.00024524,2]
[358665708,1745352632811,-2426.88601079,0.00024911,2]
[358665710,1745352632821,-250.0,0.00026011,2]
[358665712,1745352632831,-829.001331,0.00026749,2]
[358665715,1745352632840,-250.0,0.00026884,2]
[358665718,1745352632850,-300.0,0.00027248,2]
[358665721,1745352632859,-1535.49,0.00027249,2]
[358665722,1745352632869,-1000.0,0.00027249,2]
[358665725,1745352632879,-250.0,0.00027402,2]
[358665726,1745352632889,-150.0,0.00027402,117]
[358665728,1745352632898,-18924.04708699,0.000279,2]
[358665730,1745352632908,-984.96624474,0.000279,7]
[358665812,1745352638560,-960.37239617,0.000279,7]
[358665813,1745352638570,-1945.33864091,0.00028934,8]
[358665814,1745352638593,-601.0,0.000296,2]
[358665815,1745352638610,-9999.99,0.000296,2]
[358665816,1745352638621,-665.26427169,0.00029764,2]
[358665817,1745352638631,-3481.77,0.00029764,2]
[358665818,1745352638643,-254.21,0.00029764,2]
[358665819,1745352638655,-587.94,0.00029908,2]
[358665820,1745352638666,-1945.33864091,0.00029969,9]
[358665821,1745352638677,-1000.0,0.00029974,2]
[358665822,1745352638689,-1945.33864091,0.00031003,9]
[358665823,1745352638700,-200.0,0.00031886,2]
[358665824,1745352638711,-1945.33864091,0.00032038,10]
[358665825,1745352638722,-277.5655005,0.00032076,2]
[358665826,1745352638734,-587.94,0.00032172,2]
[358665827,1745352638746,-1000.0,0.00032699,2]
[358665828,1745352638758,-457.16079068,0.0003274,2]
[358665829,1745352638769,-972.56,0.00032904,30]
[358665830,1745352638780,-153.07,0.00032953,2]
[358665831,1745352638791,-500.0,0.00033,3]
[358665832,1745352638801,-1945.33864091,0.00033072,11]
[358665833,1745352638811,-700.0,0.0003308,2]
[358665834,1745352638821,-1945.33864091,0.00034107,11]
[358665836,1745352638831,-150.0,0.00034227,2]
[358665838,1745352638840,-587.94,0.00034436,2]
[358665840,1745352638850,-500.0,0.00034975,7]
[358665842,1745352638860,-1500.0,0.00034975,120]
[358665844,1745352638870,-1945.33864091,0.00035141,12]
[358665846,1745352638879,-876.0,0.00035371,2]
[358665848,1745352638889,-3981.0,0.00035371,2]
[358665850,1745352638900,-23900.0,0.0003548,2]
[358665852,1745352638910,-35912.15469676,0.00036,2]
[358665854,1745352638920,-250.0,0.00036067,2]
[358665856,1745352638930,-251.99,0.00036086,2]
[358665858,1745352638940,-1945.33864091,0.00036176,13]
[358665861,1745352638951,-10077.36953971,0.000365,2]
[358665863,1745352638962,-1333.0,0.00036511,2]
[358665865,1745352638972,-795.0,0.00036511,2]
[358665867,1745352638981,-587.94,0.000367,2]
[358665869,1745352638992,-6689.4758,0.00036898,2]
[358665871,1745352639002,-482.0,0.00037,3]
[358665873,1745352639012,-1945.33864091,0.0003721,13]
[358665876,1745352639027,-564.65783298,0.00037859,44]
[358665878,1745352639038,-1945.33864091,0.00038245,14]
[358665880,1745352639048,-876.0,0.00038371,2]
[358665882,1745352639058,-305.0,0.00038371,2]
[358665884,1745352639068,-1354.391,0.00038612,52]
[358665886,1745352639078,-175.732,0.00038612,52]
[358665888,1745352639088,-587.94,0.00038964,2]
[358665890,1745352639098,-1945.33864091,0.00039279,15]
[358665892,1745352639108,-502.104,0.00039511,2]
[358665894,1745352639117,-795.0,0.00039511,2]
[358665896,1745352639127,-500.0,0.00039986,5]
[358665898,1745352639137,-500.0,0.00039986,2]
[358665900,1745352639148,-162.95,0.0004,30]
[358665902,1745352639158,-1945.33864091,0.00040314,15]
[358665904,1745352639169,-631.6454,0.00040888,7]
[358665906,1745352639179,-189.49363,0.00040888,30]
[358665909,1745352639189,-172.0,0.00041,14]
[358665911,1745352639199,-815.0,0.00041,14]
[358665913,1745352639209,-189.49363,0.00041088,30]
[358665915,1745352639219,-358.84,0.00041095,120]
[358665917,1745352639228,-150.0,0.00041096,10]
[358665919,1745352639238,-587.94,0.00041228,2]
[358665921,1745352639248,-189.49363,0.00041288,30]
[358665923,1745352639258,-1945.33864091,0.00041348,16]
[358665925,1745352639267,-815.0,0.0004137,90]
[358665927,1745352639277,-876.0,0.00041371,2]
[358665929,1745352639287,-189.49363,0.00041488,30]
[358665931,1745352639298,-972.56,0.00041619,30]
[358665933,1745352639307,-152.56161245,0.00041644,10]
[358665935,1745352639317,-815.0,0.00041644,90]
[358665937,1745352639329,-189.49363,0.00041688,30]
[358665939,1745352639339,-1000.0,0.0004179,2]
[358665941,1745352639350,-2500.0,0.0004179,2]
[358665943,1745352639361,-500.0,0.0004179,2]
[358665945,1745352639371,-3026.13682779,0.0004183,2]
[358665947,1745352639381,-500.0,0.00041873,10]
[358665949,1745352639392,-307.47062336,0.00041873,10]
[358665951,1745352639401,-189.49363,0.00041888,30]
[358665953,1745352639412,-4977.79021674,0.00041889,15]
[358665956,1745352639422,-2140.0113,0.0004189,2]
[358665958,1745352639433,-36179.7568,0.0004189,2]
[358665960,1745352639447,-17301.9415,0.0004189,2]
[358665962,1745352639458,-1000.0,0.000419,2]
[358665964,1745352639468,-186.00191597,0.000419,16]
[358665966,1745352639478,-815.0,0.00041918,90]
[358665968,1745352639488,-150.38,0.0004197,2]
[358665971,1745352639498,-201.92991155,0.00041979,31]
[358665973,1745352639508,-182.76513538,0.00041979,31]
[358665975,1745352639518,-514.25107054,0.00041979,31]
[358665977,1745352639528,-201.76805164,0.00041979,31]
[358665979,1745352639538,-293.09,0.0004198,120]
[358665981,1745352639549,-215781.41227228,0.0004198,3]
[358666333,1745352643391,-700.228,0.00035371,2]
[358666335,1745352643402,-141485.29000238,0.0004198,3]
[358666339,1745352643439,-511.868,0.0004198,3]
[358666634,1745352646621,-1850.11980444,0.0004198,3]
[358666636,1745352646632,-358.45160019,0.0004198,3]
[358666894,1745353120249,-250.0,0.00021,2]
[358666895,1745353167131,-300.0,0.00023,2]
[358666896,1745353651863,200.0,0.000192,7]
[358666897,1745353654009,500.0,0.000193,7]
[358666898,1745353656216,800.0,0.000194,7]
[358666899,1745353658679,1000.0,0.000195,7]
[358666900,1745353660379,1300.0,0.000196,7]
[358666901,1745353662489,200.0,0.000197,7]
[358666902,1745353664589,200.0,0.000198,7]
[358666903,1745353666712,200.0,0.000199,7]
[358666920,1745353832226,-278.47386204,0.0001975,2]
[358666921,1745353832236,-306.70416463,0.00019799,2]
[358666922,1745353832253,-593.29583537,0.00019799,2]
[358666923,1745353832263,-300.0,0.00019799,2]
[358666924,1745353832274,-1006.70415463,0.000198,2]
[358666925,1745353832312,-673.82266055,0.000198,2]
[358666926,1745353832337,-2249.52804191,0.000198,2]
[358666930,1745353837683,-4506.39637602,0.000198,2]
[358666931,1745353837694,-10124.59762713,0.000198,2]
[358666932,1745353837706,-1211.05135153,0.000198,2]
[358666933,1745353837716,-250.0,0.0001985,2]
[358666934,1745353837726,-850.0,0.00019899,2]
[358666935,1745353837736,-223.88555815,0.00019899,2]
[358666936,1745353837745,-500.0,0.00019899,2]
[358666937,1745353837755,-333.04320394,0.00019899,2]
[358666938,1745353837764,-171.56441664,0.000199,2]
[358666939,1745353837773,-6698.0918,0.000199,2]
[358666940,1745353837783,-1711.34820127,0.000199,2]
[358666941,1745353837792,-510.17205753,0.000199,2]
[358666942,1745353837801,-6322.21875826,0.000199,2]
[358666943,1745353837828,-994.36,0.000199,2]
[358666944,1745353837840,-930.68695204,0.000199,2]
[358666945,1745353837863,-69561.39933886,0.000199,2]
[358666946,1745353837872,-410.0041919,0.000199,2]
[358666947,1745353837881,-2500.0,0.000199,2]
[358666948,1745353837891,-592.04711612,0.000199,2]
[358666949,1745353837900,-592.04711612,0.000199,2]
[358666950,1745353837910,-572.61337729,0.00019973,2]
[358666951,1745353837919,-158.43565893,0.00019973,2]
[358666952,1745353837929,-168.96440878,0.00019973,2]
[358666953,1745353837939,-500.0,0.00019973,2]
[358666954,1745353837948,-500.0,0.00019973,2]
[358666956,1745353837957,-500.0,0.00019973,2]
[358666957,1745353837966,-162.22541034,0.00019973,2]
[358666958,1745353837975,-500.0,0.00019973,2]
[358666959,1745353837984,-500.42187162,0.00019973,2]
[358666960,1745353837995,-500.0,0.00019973,2]
[358666961,1745353838004,-162.66,0.0001999,2]
[358666963,1745353838013,-162.66,0.0001999,2]
[358666964,1745353838023,-162.66,0.0001999,2]
[358666966,1745353838033,-162.66,0.0001999,2]
[358666967,1745353838045,-309.83132738,0.0001999,2]
[358666968,1745353838054,-309.83132738,0.0001999,2]
[358666969,1745353838064,-309.83132738,0.0001999,2]
[358666971,1745353838074,-500.0,0.00019999,2]
[358666973,1745353838084,-301.71229768,0.00019999,2]
[358666975,1745353838093,-273.10497182,0.00019999,2]
[358666977,1745353838103,-21881.04162313,0.00019999,2]
[358666979,1745353838115,-379.23529184,0.00019999,2]
[358666981,1745353838126,-201.76805164,0.00019999,2]
[358666983,1745353838135,-182.77594139,0.00019999,2]
[358666985,1745353838145,-315.51173409,0.00019999,2]
[358666987,1745353838154,-332835.28979816,0.0002,2]
[358666989,1745353838166,-757.415558,0.0002,2]
[358667160,1745353839958,-3071.32839809,0.0002,2]
[358667163,1745353839982,-1006.2,0.0002,2]
[358667165,1745353839994,-9200.0,0.0002,2]
[358667167,1745353840005,-17006.37,0.0002,2]
[358667170,1745353840021,-2065.10645211,0.0002,2]
[358667423,1745353842608,-1723.80337639,0.0002,2]
[358667425,1745353842620,-365.83146088,0.0002,2]
[358667427,1745353842631,-16522.14655332,0.0002,2]
[358667430,1745353842643,-1351.6,0.0002,2]
[358667432,1745353842654,-8201.7680531,0.0002,2]
[358667435,1745353842678,-35405.98186031,0.0002,2]
[358667441,1745353842720,-873.04153788,0.0002,2]
[358667452,1745353842832,-50956.53433579,0.0002,2]
[358667493,1745353845498,-1003.2,0.0002,2]
[358667494,1745353845658,-657.27927126,0.0002,2]
[358667495,1745353845671,-630.820596,0.0002,2]
[358667496,1745353845819,-414.76215946,0.0002,2]
[358667537,1745353883236,141638.0,0.00028,120]
[358667542,1745354643070,-171.56441662,0.0001979,2]
[358667543,1745354643135,-140.67647656,0.000198,2]
[358667544,1745354648938,-30.88794006,0.000198,2]
[358667545,1745354648959,-161.21641693,0.000198,2]
[358667548,1745354653647,-296.45780896,0.000198,2]
[358667552,1745354670074,-168.96440878,0.000198,2]
[358667553,1745354673094,-243.87169434,0.000198,2]
[358667554,1745354681551,-152.0,0.000198,2]
[358667555,1745354691569,-296.45780896,0.000198,2]
[358667556,1745354697275,-164.52263386,0.000198,2]
[358667557,1745354702429,-267.24327287,0.000198,2]
[358667562,1745354707893,-300.0,0.000198,2]
[358667566,1745354752691,-295.89980694,0.000198,2]
[358667567,1745354760991,-286.39176595,0.000198,2]
[358667570,1745354767468,-181.80468241,0.000198,2]
[358667571,1745354767491,-20.36571759,0.000198,2]
[358667581,1745354821404,-249.19968241,0.000198,2]
[358667582,1745354821429,-150.0,0.00019832,2]
[358667583,1745354821452,-99.42411613,0.00019863,2]
[358667584,1745354881927,-50.57588387,0.00019863,2]
[358667585,1745354881950,-160.15848003,0.00019873,2]
[358667586,1745354881972,-168.96440878,0.00019873,2]
[358667587,1745354881995,-500.0,0.00019873,2]
[358667588,1745354882016,-120.30122732,0.00019873,2]
[358667589,1745354913906,-300.0,0.00019872,2]
[358667590,1745354913929,-41.92418302,0.00019873,2]
[358667591,1745354913952,-56.27227448,0.00019873,2]
[358667592,1745354925884,-300.0,0.00019873,2]
[358667593,1745354935176,-143.72772552,0.00019873,2]
[358667594,1745354935214,-37.40227448,0.00019873,2]
[358667595,1745354942955,-200.00356056,0.00019873,2]
[358667596,1745354947666,-166.08,0.00019889,2]
[358667597,1745354950740,-158.43565893,0.00019889,2]
[358667598,1745354952206,-575.48434107,0.00019889,2]
[358667599,1745354963097,-164.8922272,0.00019889,2]
[358667619,1745354979798,-135.1077728,0.00019889,2]
[358667620,1745354979828,-114.8922272,0.00019889,2]
[358667625,1745355002154,-212.23828901,0.00019889,2]
[358667626,1745355009879,-333.69048116,0.00019889,2]
[358667627,1745355014627,-216.94101419,0.00019889,2]
[358667706,1745355037956,-137.13021564,0.00019889,2]
[358667707,1745355037968,-300.0,0.00019889,2]
[358667708,1745355037979,-150.0,0.00019889,2]
[358667709,1745355037991,-10077.36953971,0.0001989,2]
[358667710,1745355038001,-185.638,0.00019899,2]
[358667711,1745355038011,-1640.675,0.00019899,2]
[358667712,1745355038020,-234.0,0.00019899,2]
[358667713,1745355038030,-3885.01216946,0.00019899,2]
[358667714,1745355038041,-20983.0948,0.000199,2]
[358667715,1745355038050,-1000.0,0.000199,2]
[358667716,1745355038060,-1520.1157314,0.000199,2]
[358667717,1745355038070,-36179.7568,0.000199,2]
[358667718,1745355038079,-498.62379854,0.000199,2]
[358667719,1745355038089,-1280.62354882,0.000199,2]
[358667720,1745355038098,-1000.0,0.000199,2]
[358667721,1745355038108,-11114.48592325,0.000199,2]
[358667722,1745355038118,-2500.0,0.000199,2]
[358667723,1745355038127,-707.07993566,0.000199,2]
[358667724,1745355038136,-653.99459539,0.000199,2]
[358667725,1745355038146,-260.68977884,0.000199,2]
[358667726,1745355038155,-11016.1479341,0.000199,2]
[358667727,1745355038165,-500.0,0.00019973,2]
[358667728,1745355038175,-166.96743882,0.00019973,2]
[358667729,1745355038186,-500.0,0.00019973,2]
[358667730,1745355038196,-459.27150142,0.00019973,2]
[358667731,1745355038206,-500.0,0.00019973,2]
[358667732,1745355038216,-500.0,0.00019973,2]
[358667734,1745355038225,-262.59416496,0.00019973,2]
[358667736,1745355038235,-572.61337729,0.00019973,2]
[358667738,1745355038245,-500.0,0.00019973,2]
[358667740,1745355038254,-500.0,0.00019973,2]
[358667741,1745355038264,-500.42187162,0.00019973,2]
[358667743,1745355038274,-158.43565893,0.00019973,2]
[358667745,1745355038284,-309.83132738,0.0001999,2]
[358667747,1745355038294,-309.83132738,0.0001999,2]
[358667749,1745355038303,-309.83132738,0.0001999,2]
[358667751,1745355038313,-162.66,0.0001999,2]
[358667753,1745355038323,-162.66,0.0001999,2]
[358667755,1745355038332,-162.66,0.0001999,2]
[358667757,1745355038341,-162.66,0.0001999,2]
[358667759,1745355038352,-300.0,0.00019999,2]
[358667761,1745355038361,-300.0,0.00019999,2]
[358667763,1745355038371,-500.0,0.00019999,2]
[358667765,1745355038380,-574.8172695,0.00019999,2]
[358667767,1745355038389,-500.0,0.00019999,2]
[358667769,1745355038399,-500.0,0.00019999,2]
[358667771,1745355038408,-540.77960128,0.00019999,2]
[358667773,1745355038421,-3272115.03249529,0.0002,2]
[358667775,1745355038433,-2482372.48999088,0.0002,2]
[358667777,1745355038448,-926.84955,0.0002,2]
[358667783,1745355038498,150.0,0.00027,120]
[358667816,1745355038828,-203.0406,0.0002,2]
[358668223,1745355042845,-2987.54855027,0.000199,2]
[358668241,1745355043007,-921.45900752,0.000199,2]
[358668244,1745355043019,-2004.69697155,0.000199,2]
[358668249,1745355043061,-37689.0426295,0.000199,2]
[358668297,1745355043611,-373.22342554,0.000199,2]
[358668340,1745355045707,-1567.79318038,0.000199,2]
[358668341,1745355045719,-342.18505288,0.000199,2]
[358668411,1745355049673,-172.8770813,0.000199,2]
[358668412,1745355064552,-189.12639273,0.000199,2]
[358668413,1745355067986,-185.40960025,0.000199,2]
[358668414,1745355076292,-246.872,0.000199,2]
[358668415,1745355082699,-250.0,0.000199,2]
[358668416,1745355094851,-250.94045938,0.000199,2]
[358668417,1745355105529,-372.48317704,0.000199,2]
[358668418,1745355107068,-172.65410843,0.000199,2]
[358668419,1745355117900,-170.31845198,0.000198,2]
[358668420,1745355125071,-99.24694802,0.000198,2]
[358668421,1745355125096,-150.0,0.0001985,2]
[358668422,1745355125119,-34.18031306,0.00019899,2]
[358668423,1745355129469,-265.81968694,0.00019899,2]
[358668424,1745355129495,-1.54103666,0.000199,2]
[358668425,1745355139251,-170.31845198,0.000198,2]
[358668426,1745355154139,-41.91983703,0.000198,2]
[358668427,1745355154163,-144.80733962,0.000198,2]
[358668428,1745355175764,-300.0,0.000198,2]
[358668429,1745355184070,-256.0,0.000198,2]
[358668430,1745355191829,-256.0,0.000198,2]
[358668431,1745355202479,-169.737325,0.000198,2]
[358668432,1745355209055,-343.42127106,0.000198,2]
[358668433,1745355219439,-191.26933503,0.000198,2]
[358668434,1745355225735,-192.45795073,0.000198,2]
[358668438,1745355548102,792.9182,7.945e-05,2]
[358668439,1745355706986,267.03,0.00025209,120]
[358668440,1745355707391,267.03,0.0002773,120]
[358668441,1745355796429,250.0,0.00018873,2]
[358668442,1745355843553,150.0,0.00018878,2]
[358668443,1745355862431,1015.58,0.00018858,2]
[358668444,1745355899053,176.15,0.00018853,2]
[358668445,1745355935354,2434.02,0.00018847,2]
[358668446,1745356027398,6569.65,0.00018844,2]
[358668447,1745356035278,1389.43,0.00018844,2]
[358668448,1745356058743,1000.0,0.00018848,2]
[358668449,1745356118790,-243.11719965,0.00019105,2]
[358668450,1745356136192,299.5,0.00018839,2]
[358668451,1745356163890,1896.82,0.00018883,2]
[358668455,1745356231865,-500.0,0.00019352,2]
[358668456,1745356231875,-150.0,0.00019512,2]
[358668457,1745356231898,-150.0,0.00019621,2]
[358668458,1745356231909,-900.0,0.00019672,2]
[358668459,1745356231920,-300.0,0.00019672,2]
[358668460,1745356231930,-300.0,0.00019672,2]
[358668461,1745356231940,-459.27150142,0.00019673,2]
[358668462,1745356231951,-500.0,0.00019673,2]
[358668463,1745356231961,-166.96743882,0.00019673,2]
[358668464,1745356231971,-500.0,0.00019673,2]
[358668465,1745356231980,-500.0,0.00019673,2]
[358668466,1745356231990,-500.0,0.00019673,2]